fUST/lending_fUST_20240925
["ID","MTS","AMOUNT","RATE_DAILY","PERIOD"]
[339105126,1727250390501,-500.0,0.00016438,2]
[339105127,1727250390524,-500.0,0.00016438,2]
[339105128,1727250390547,-225.01666888,0.00016438,2]
[339105129,1727250390572,-500.0,0.00016438,2]
[339105130,1727250390595,-500.0,0.00016438,2]
[339105131,1727250390620,-500.0,0.00016438,2]
[339105132,1727250390644,-500.0,0.00016438,2]
[339105133,1727250390669,-500.0,0.00016438,2]
[339105134,1727250390694,-500.0,0.00016438,2]
[339105135,1727250390718,-500.0,0.00016438,2]
[339105136,1727250390742,-500.0,0.00016438,2]
[339105137,1727250390766,-1156.89,0.00016438,2]
[339105138,1727250390791,-500.0,0.00016438,2]
[339105139,1727250390815,-496.62666425,0.00016438,2]
[339105140,1727250390839,-500.0,0.00016438,2]
[339105141,1727250390862,-590.22371879,0.00016438,2]
[339105142,1727250390888,-525.76818392,0.00016438,2]
[339105143,1727250390911,-500.0,0.00016438,2]
[339105144,1727250390936,-500.0,0.00016438,2]
[339105145,1727250390960,-500.0,0.00016438,2]
[339105146,1727250390984,-541.19,0.00016438,2]
[339105147,1727250391010,-500.0,0.00016438,2]
[339105148,1727250391034,-364.69197004,0.00016438,2]
[339105149,1727250391058,-500.0,0.00016438,2]
[339105150,1727250391083,-500.0,0.00016438,2]
[339105151,1727250391108,-191.445941,0.00016438,2]
[339105152,1727250391131,-191.445941,0.00016438,2]
[339105153,1727250391155,-500.0,0.00016438,2]
[339105154,1727250391179,-191.445941,0.00016438,2]
[339105155,1727250391203,-191.445941,0.00016438,2]
[339105156,1727250391227,-191.445941,0.00016438,2]
[339105157,1727250391251,-500.0,0.00016438,2]
[339105158,1727250391275,-191.445941,0.00016438,2]
[339105159,1727250391300,-500.0,0.00016438,2]
[339105160,1727250391323,-500.0,0.00016438,2]
[339105161,1727250391347,-500.0,0.00016438,2]
[339105162,1727250391372,-502.49782294,0.00016438,2]
[339105163,1727250391668,-500.0,0.00016438,2]
[339105164,1727250391694,-500.0,0.00016438,2]
[339105165,1727250391718,-620.18,0.00016438,2]
[339105166,1727250391742,-517.88309722,0.00016438,2]
[339105167,1727250391766,-500.0,0.00016438,2]
[339105168,1727250391789,-165.25423971,0.00016438,2]
[339105169,1727250391812,-500.0,0.00016438,2]
[339105170,1727250391837,-238.00910051,0.00016438,2]
[339105171,1727250391861,-500.0,0.00016438,2]
[339105172,1727250391885,-502.52,0.00016438,2]
[339105173,1727250391908,-500.0,0.00016438,2]
[339105174,1727250391931,-500.0,0.00016438,2]
[339105175,1727250391954,-500.0,0.00016438,2]
[339105176,1727250391977,-500.0,0.00016438,2]
[339105177,1727250392001,-746.42,0.00016438,2]
[339105178,1727250392025,-500.0,0.00016438,2]
[339105179,1727250392049,-500.0,0.00016438,2]
[339105180,1727250392072,-500.0,0.00016438,2]
[339105181,1727250392096,-500.0,0.00016438,2]
[339105182,1727250392119,-1465.52,0.00016438,2]
[339105183,1727250392143,-500.0,0.00016438,2]
[339105184,1727250392166,-500.0,0.00016438,2]
[339105185,1727250392189,-500.0,0.00016438,2]
[339105186,1727250392213,-509.2143858,0.00016438,2]
[339105187,1727250392239,-500.0,0.00016438,2]
[339105188,1727250392274,-500.0,0.00016438,2]
[339105189,1727250392297,-500.0,0.00016438,2]
[339105190,1727250392320,-252.55194096,0.00016438,2]
[339105191,1727250392345,-500.0,0.00016438,2]
[339105192,1727250392371,-515.21065146,0.00016438,2]
[339105193,1727250392394,-511.19640966,0.00016438,2]
[339105194,1727250392418,-822.93,0.00016438,2]
[339105195,1727250392442,-586.32,0.00016438,2]
[339105196,1727250392467,-500.0,0.00016438,2]
[339105197,1727250392491,-500.0,0.00016438,2]
[339105198,1727250392515,-506.38,0.00016438,2]
[339105199,1727250392539,-622.1,0.00016438,2]
[339105200,1727250392563,-500.0,0.00016438,2]
[339105201,1727250392587,-607.24646916,0.00016438,2]
[339105202,1727250392612,-500.0,0.00016438,2]
[339105203,1727250392639,-500.0,0.00016438,2]
[339105204,1727250392662,-500.0,0.00016438,2]
[339105205,1727250392690,-500.0,0.00016438,2]
[339105206,1727250392714,-500.0,0.00016438,2]
[339105207,1727250392738,-500.0,0.00016438,2]
[339105208,1727250392772,-416.54798,0.00016438,2]
[339105209,1727250392796,-416.54798,0.00016438,2]
[339105210,1727250392820,-500.0,0.00016438,2]
[339105211,1727250392844,-416.54798,0.00016438,2]
[339105212,1727250392871,-336.39904728,0.00016438,2]
[339105213,1727250441706,396.50383116,0.00014,2]
[339105224,1727250536081,831.8733874,0.00014093,2]
[339105232,1727250585619,201.41486581,0.0001417,2]
[339105233,1727250600303,847.1045446,0.00013814,2]
[339105234,1727250603086,1294.6656325,0.00013814,2]
[339105271,1727250632412,-670.69014319,0.0001417,2]
[339105272,1727250632424,-300.0,0.00014199,2]
[339105273,1727250632435,-4440.97023,0.000142,2]
[339105380,1727250642370,-3859.02977,0.000142,2]
[339105381,1727250642379,-9505.58128916,0.000142,2]
[339105382,1727250642388,-3000.0,0.00014293,2]
[339105383,1727250642398,-250.0,0.00014913,2]
[339105384,1727250642407,-500.0,0.00015109,2]
[339105385,1727250642416,-424.73864301,0.00015109,2]
[339105386,1727250642425,-500.0,0.00015109,2]
[339105387,1727250642434,-500.0,0.00015109,2]
[339105388,1727250642445,-500.0,0.00015109,2]
[339105389,1727250642454,-500.0,0.00015109,2]
[339105390,1727250642463,-500.0,0.00015109,2]
[339105391,1727250642472,-500.0,0.00015109,2]
[339105392,1727250642481,-500.0,0.00015109,2]
[339105393,1727250642490,-500.0,0.00015109,2]
[339105394,1727250642499,-500.0,0.00015109,2]
[339105395,1727250642508,-500.0,0.00015109,2]
[339105396,1727250642518,-500.0,0.00015109,2]
[339105397,1727250642529,-500.0,0.00015109,2]
[339105398,1727250642538,-500.0,0.00015109,2]
[339105399,1727250642547,-500.0,0.00015109,2]
[339105400,1727250642556,-508.42123393,0.00015109,2]
[339105401,1727250642565,-500.0,0.00015109,2]
[339105402,1727250642574,-500.0,0.00015109,2]
[339105403,1727250642583,-500.0,0.00015109,2]
[339105404,1727250642592,-500.0,0.00015109,2]
[339105405,1727250642602,-500.0,0.00015109,2]
[339105406,1727250642612,-500.0,0.00015109,2]
[339105407,1727250642623,-500.0,0.00015109,2]
[339105408,1727250642633,-500.0,0.00015109,2]
[339105409,1727250642643,-500.0,0.00015109,2]
[339105410,1727250642652,-500.0,0.00015109,2]
[339105411,1727250642663,-500.0,0.00015109,2]
[339105413,1727250642674,-500.0,0.00015109,2]
[339105414,1727250642683,-500.0,0.00015109,2]
[339105415,1727250642692,-500.0,0.00015109,2]
[339105416,1727250642702,-350.61466391,0.00015109,2]
[339105417,1727250642712,-500.0,0.00015109,2]
[339105418,1727250642722,-500.0,0.00015109,2]
[339105419,1727250642733,-500.0,0.00015109,2]
[339105420,1727250642744,-500.0,0.00015109,2]
[339105421,1727250642755,-500.0,0.00015109,2]
[339105422,1727250642765,-500.0,0.00015109,2]
[339105423,1727250642774,-500.0,0.00015109,2]
[339105424,1727250642785,-500.0,0.00015109,2]
[339105425,1727250642794,-500.0,0.00015109,2]
[339105426,1727250642803,-500.0,0.00015109,2]
[339105427,1727250642815,-500.0,0.00015109,2]
[339105428,1727250642824,-500.0,0.00015109,2]
[339105429,1727250642834,-169.45855964,0.00015109,2]
[339105430,1727250642844,-500.0,0.00015109,2]
[339105431,1727250642853,-500.0,0.00015109,2]
[339105432,1727250642862,-420.65942365,0.00015109,2]
[339105436,1727250643136,-79.34057635,0.00015109,2]
[339105437,1727250643146,-201.71853253,0.00015109,2]
[339105440,1727250643158,-298.28146747,0.00015109,2]
[339105441,1727250643168,-500.0,0.00015109,2]
[339105442,1727250643177,-500.0,0.00015109,2]
[339105443,1727250643187,-500.0,0.00015109,2]
[339105445,1727250643197,-500.0,0.00015109,2]
[339105447,1727250643206,-500.0,0.00015109,2]
[339105449,1727250643215,-500.0,0.00015109,2]
[339105450,1727250643224,-500.0,0.00015109,2]
[339105451,1727250643233,-500.0,0.00015109,2]
[339105452,1727250643242,-500.0,0.00015109,2]
[339105454,1727250643252,-500.0,0.00015109,2]
[339105456,1727250643261,-500.0,0.00015109,2]
[339105458,1727250643270,-500.0,0.00015109,2]
[339105460,1727250643280,-500.0,0.00015109,2]
[339105462,1727250643290,-500.0,0.00015109,2]
[339105463,1727250643299,-500.0,0.00015109,2]
[339105465,1727250643309,-500.0,0.00015109,2]
[339105467,1727250643318,-500.0,0.00015109,2]
[339105468,1727250643327,-500.0,0.00015109,2]
[339105470,1727250643337,-500.0,0.00015109,2]
[339105472,1727250643346,-500.0,0.00015109,2]
[339105474,1727250643355,-500.0,0.00015109,2]
[339105476,1727250643364,-500.0,0.00015109,2]
[339105477,1727250643373,-500.0,0.00015109,2]
[339105479,1727250643384,-500.0,0.00015109,2]
[339105480,1727250643393,-500.0,0.00015109,2]
[339105481,1727250643402,-500.0,0.00015109,2]
[339105482,1727250643412,-500.0,0.00015109,2]
[339105483,1727250643421,-500.0,0.00015109,2]
[339105484,1727250643430,-8712.4789824,0.0001511,2]
[339105485,1727250643440,-222.99368632,0.00015495,2]
[339105486,1727250643449,-250.0,0.00015553,2]
[339105487,1727250643459,-250.0,0.00015596,2]
[339105488,1727250643469,-153.0,0.00015616,2]
[339105489,1727250643478,-153.0,0.00015616,2]
[339105490,1727250643487,-420.0,0.00015619,2]
[339105491,1727250643496,-250.0,0.00015639,2]
[339105492,1727250643505,-250.0,0.00015681,2]
[339105493,1727250643515,-153.0,0.000157,2]
[339105495,1727250643525,-250.0,0.00015724,2]
[339105497,1727250643534,-250.0,0.00015767,2]
[339105498,1727250643544,-6728.38845224,0.00015795,2]
[339105500,1727250643553,-306.0,0.000158,2]
[339105502,1727250643562,-153.0,0.000158,2]
[339105503,1727250643570,-250.0,0.00015809,2]
[339105504,1727250643579,-250.0,0.00015852,2]
[339105505,1727250643588,-1000.0,0.00015888,2]
[339105507,1727250643597,-250.0,0.00015895,2]
[339105508,1727250643606,-250.0,0.00015937,2]
[339105509,1727250643615,-250.0,0.0001598,2]
[339105510,1727250643624,-160.0,0.00015997,2]
[339105511,1727250643634,-250.0,0.00016023,2]
[339105512,1727250643643,-153.0,0.0001605,2]
[339105513,1727250643652,-250.0,0.00016065,2]
[339105514,1727250643661,-250.0,0.00016108,2]
[339105515,1727250643670,-250.0,0.00016151,2]
[339105516,1727250643679,-250.0,0.00016193,2]
[339105517,1727250643689,-250.0,0.00016236,2]
[339105518,1727250643699,-250.0,0.00016279,2]
[339105519,1727250643708,-172.0,0.000163,2]
[339105520,1727250643717,-250.0,0.00016321,2]
[339105521,1727250643726,-174.65411068,0.00016328,2]
[339105522,1727250643739,-174.65411067,0.00016333,2]
[339105523,1727250643749,-174.65411067,0.00016338,2]
[339105524,1727250643758,-250.0,0.00016364,2]
[339105525,1727250643768,-500.0,0.00016427,2]
[339105526,1727250643779,-500.0,0.00016427,2]
[339105527,1727250643788,-500.0,0.00016427,2]
[339105528,1727250643797,-362.11730463,0.00016427,2]
[339105529,1727250643808,-500.0,0.00016427,2]
[339105530,1727250643817,-500.0,0.00016427,2]
[339105531,1727250643826,-587.73415325,0.00016427,2]
[339105532,1727250643836,-219.41673167,0.00016427,2]
[339105533,1727250643845,-500.0,0.00016427,2]
[339105534,1727250643855,-456.37061751,0.00016427,2]
[339105535,1727250643864,-267.82542284,0.00016427,2]
[339105536,1727250643874,-500.0,0.00016427,2]
[339105537,1727250643883,-500.0,0.00016427,2]
[339105538,1727250643892,-500.0,0.00016427,2]
[339105539,1727250643903,-500.0,0.00016427,2]
[339105540,1727250643912,-500.0,0.00016427,2]
[339105541,1727250643921,-500.0,0.00016427,2]
[339105542,1727250643931,-500.0,0.00016427,2]
[339105543,1727250643940,-300.0,0.00016427,2]
[339105544,1727250643949,-3008.02551378,0.00016428,2]
[339105545,1727250643959,-284343.413282,0.00016428,2]
[339105546,1727250643968,-159842.000192,0.00016428,2]
[339105547,1727250643977,-19980.250024,0.00016436,2]
[339105548,1727250643986,-160.0,0.00016437,2]
[339105549,1727250643995,-151.0,0.00016438,2]
[339105550,1727250644006,-156.737,0.00016438,2]
[339105551,1727250644016,-500.0,0.00016438,2]
[339105552,1727250644026,-500.0,0.00016438,2]
[339105553,1727250644037,-500.0,0.00016438,2]
[339105554,1727250644047,-500.0,0.00016438,2]
[339105555,1727250644058,-500.0,0.00016438,2]
[339105556,1727250644069,-500.0,0.00016438,2]
[339105557,1727250644078,-500.0,0.00016438,2]
[339105558,1727250644087,-500.0,0.00016438,2]
[339105559,1727250644096,-500.0,0.00016438,2]
[339105560,1727250644106,-500.0,0.00016438,2]
[339105561,1727250644116,-585.45913989,0.00016438,2]
[339105562,1727250644125,-503.8260819,0.00016438,2]
[339105563,1727250644134,-504.48763738,0.00016438,2]
[339105564,1727250644143,-500.0,0.00016438,2]
[339105565,1727250644153,-500.0,0.00016438,2]
[339105566,1727250644165,-500.0,0.00016438,2]
[339105567,1727250644176,-514.29473836,0.00016438,2]
[339105568,1727250644185,-500.0,0.00016438,2]
[339105569,1727250644196,-516.19653735,0.00016438,2]
[339105570,1727250644206,-500.0,0.00016438,2]
[339105571,1727250644216,-151.0,0.00016438,2]
[339105572,1727250644227,-151.0,0.00016438,2]
[339105573,1727250644239,-500.0,0.00016438,2]
[339105574,1727250644250,-500.0,0.00016438,2]
[339105575,1727250644260,-500.0,0.00016438,2]
[339105576,1727250644269,-500.0,0.00016438,2]
[339105577,1727250644278,-552.38,0.00016438,2]
[339105578,1727250644287,-506.10840459,0.00016438,2]
[339105579,1727250644297,-500.0,0.00016438,2]
[339105580,1727250644307,-328.339332,0.00016438,2]
[339105581,1727250644316,-328.339332,0.00016438,2]
[339105582,1727250644327,-328.339332,0.00016438,2]
[339105583,1727250644336,-328.339332,0.00016438,2]
[339105584,1727250644346,-500.0,0.00016438,2]
[339105585,1727250644355,-500.0,0.00016438,2]
[339105586,1727250644365,-151.0,0.00016438,2]
[339105587,1727250644374,-153.872191,0.00016438,2]
[339105588,1727250644384,-500.0,0.00016438,2]
[339105589,1727250644393,-553.17333238,0.00016438,2]
[339105590,1727250644403,-500.0,0.00016438,2]
[339105591,1727250644412,-151.0,0.00016438,2]
[339105592,1727250644422,-500.0,0.00016438,2]
[339105593,1727250644434,-500.0,0.00016438,2]
[339105594,1727250644447,-500.0,0.00016438,2]
[339105595,1727250644458,-500.0,0.00016438,2]
[339105596,1727250644469,-500.0,0.00016438,2]
[339105597,1727250644479,-504.89882747,0.00016438,2]
[339105598,1727250644490,-611.95128705,0.00016438,2]
[339105599,1727250644502,-500.0,0.00016438,2]
[339105600,1727250644512,-500.0,0.00016438,5]
[339105601,1727250644523,-500.0,0.00016438,2]
[339105602,1727250644534,-500.0,0.00016438,2]
[339105603,1727250644543,-500.0,0.00016438,2]
[339105604,1727250644554,-500.0,0.00016438,2]
[339105605,1727250644564,-500.0,0.00016438,2]
[339105606,1727250644574,-500.0,0.00016438,2]
[339105607,1727250644583,-531.27071109,0.00016438,2]
[339105608,1727250644593,-500.0,0.00016438,2]
[339105609,1727250644602,-500.0,0.00016438,2]
[339105610,1727250644612,-500.0,0.00016438,2]
[339105611,1727250644621,-151.0,0.00016438,2]
[339105612,1727250644630,-151.0,0.00016438,2]
[339105613,1727250644640,-500.0,0.00016438,2]
[339105614,1727250644650,-657.15,0.00016438,2]
[339105615,1727250644659,-500.0,0.00016438,2]
[339105616,1727250644668,-500.0,0.00016438,2]
[339105617,1727250644678,-500.0,0.00016438,2]
[339105618,1727250644687,-500.0,0.00016438,2]
[339105619,1727250644698,-500.0,0.00016438,2]
[339105620,1727250644708,-500.0,0.00016438,2]
[339105621,1727250644718,-500.0,0.00016438,2]
[339105622,1727250644728,-500.0,0.00016438,2]
[339105623,1727250644742,-500.0,0.00016438,2]
[339105624,1727250644752,-500.0,0.00016438,2]
[339105625,1727250644765,-283.75725302,0.00016438,2]
[339105626,1727250644775,-500.0,0.00016438,2]
[339105627,1727250644784,-508.53290594,0.00016438,2]
[339105628,1727250644794,-500.0,0.00016438,2]
[339105629,1727250644803,-500.0,0.00016438,2]
[339105630,1727250644815,-151.0,0.00016438,2]
[339105631,1727250644826,-500.0,0.00016438,2]
[339105632,1727250644835,-500.0,0.00016438,2]
[339105633,1727250644845,-531.082875,0.00016438,2]
[339105634,1727250644855,-500.0,0.00016438,2]
[339105635,1727250644864,-509.02146782,0.00016438,2]
[339105636,1727250644874,-500.0,0.00016438,2]
[339105637,1727250644883,-500.0,0.00016438,2]
[339105638,1727250644893,-500.0,0.00016438,2]
[339105639,1727250644903,-500.0,0.00016438,2]
[339105640,1727250644912,-500.0,0.00016438,2]
[339105641,1727250644922,-306.974629,0.00016438,2]
[339105642,1727250644931,-500.0,0.00016438,2]
[339105643,1727250644941,-500.0,0.00016438,2]
[339105644,1727250644952,-502.72031707,0.00016438,2]
[339105645,1727250644962,-306.974629,0.00016438,2]
[339105646,1727250644974,-500.0,0.00016438,2]
[339105647,1727250644985,-500.0,0.00016438,2]
[339105648,1727250644994,-500.0,0.00016438,2]
[339105649,1727250645005,-500.0,0.00016438,2]
[339105650,1727250645015,-151.0,0.00016438,2]
[339105651,1727250645025,-500.0,0.00016438,2]
[339105652,1727250645034,-501.71733928,0.00016438,2]
[339105653,1727250645044,-387.33955106,0.00016438,2]
[339105654,1727250645054,-342.87385464,0.00016438,2]
[339105655,1727250645064,-500.0,0.00016438,2]
[339105656,1727250645074,-255.23525499,0.00016438,2]
[339105657,1727250645083,-675.09,0.00016438,2]
[339105658,1727250645092,-500.0,0.00016438,2]
[339105659,1727250645101,-506.41083005,0.00016438,2]
[339105660,1727250645111,-151.0,0.00016438,2]
[339105661,1727250645120,-151.0,0.00016438,2]
[339105662,1727250645130,-151.0,0.00016438,2]
[339105663,1727250645139,-500.0,0.00016438,2]
[339105664,1727250645149,-517.46914724,0.00016438,2]
[339105665,1727250645159,-151.0,0.00016438,2]
[339105666,1727250645168,-500.0,0.00016438,2]
[339105667,1727250645178,-151.0,0.00016438,2]
[339105668,1727250645187,-500.0,0.00016438,2]
[339105669,1727250645197,-500.0,0.00016438,2]
[339105670,1727250645207,-507.08230225,0.00016438,2]
[339105671,1727250645217,-511.32525765,0.00016438,2]
[339105672,1727250645226,-500.0,0.00016438,2]
[339105673,1727250645236,-505.9836126,0.00016438,2]
[339105674,1727250645246,-2499.49,0.00016438,2]
[339105675,1727250645257,-516.38882381,0.00016438,2]
[339105676,1727250645266,-500.0,0.00016438,2]
[339105677,1727250645276,-500.0,0.00016438,2]
[339105678,1727250645285,-151.0,0.00016438,2]
[339105679,1727250645295,-500.0,0.00016438,2]
[339105680,1727250645304,-792.83,0.00016438,2]
[339105681,1727250645314,-792.83,0.00016438,2]
[339105682,1727250645324,-792.83,0.00016438,2]
[339105683,1727250645333,-792.83,0.00016438,2]
[339105684,1727250645342,-792.83,0.00016438,2]
[339105685,1727250645352,-792.83,0.00016438,2]
[339105686,1727250645362,-792.83,0.00016438,2]
[339105687,1727250645372,-792.83,0.00016438,2]
[339105688,1727250645382,-792.83,0.00016438,2]
[339105689,1727250645393,-792.83,0.00016438,2]
[339105690,1727250645406,-792.83,0.00016438,2]
[339105691,1727250645415,-792.83,0.00016438,2]
[339105692,1727250645427,-792.83,0.00016438,2]
[339105693,1727250645438,-792.83,0.00016438,2]
[339105694,1727250645449,-792.83,0.00016438,2]
[339105695,1727250645460,-792.83,0.00016438,2]
[339105696,1727250645470,-500.0,0.00016438,2]
[339105697,1727250645480,-792.83,0.00016438,2]
[339105698,1727250645491,-792.83,0.00016438,2]
[339105699,1727250645500,-792.83,0.00016438,2]
[339105700,1727250645511,-792.83,0.00016438,2]
[339105701,1727250645522,-792.83,0.00016438,2]
[339105702,1727250645533,-792.83,0.00016438,2]
[339105703,1727250645544,-792.83,0.00016438,2]
[339105704,1727250645554,-500.0,0.00016438,2]
[339105705,1727250645565,-792.91,0.00016438,2]
[339105706,1727250645576,-500.0,0.00016438,2]
[339105707,1727250645586,-520.41570554,0.00016438,2]
[339105708,1727250645595,-500.0,0.00016438,2]
[339105709,1727250645605,-500.0,0.00016438,2]
[339105710,1727250645615,-500.0,0.00016438,2]
[339105711,1727250645626,-500.0,0.00016438,2]
[339105712,1727250645636,-151.0,0.00016438,2]
[339105713,1727250645646,-500.0,0.00016438,2]
[339105714,1727250645656,-500.0,0.00016438,2]
[339105716,1727250645667,-358.83318281,0.00016438,2]
[339105717,1727250645677,-151.0,0.00016438,2]
[339105718,1727250645688,-500.0,0.00016438,2]
[339105719,1727250645699,-501.58221497,0.00016438,2]
[339105720,1727250645709,-401.55812849,0.00016438,2]
[339105722,1727250645718,-500.0,0.00016438,2]
[339105724,1727250645729,-500.0,0.00016438,2]
[339105725,1727250645744,-785.84,0.00016438,2]
[339105726,1727250645753,-500.0,0.00016438,2]
[339105727,1727250645764,-500.0,0.00016438,2]
[339105729,1727250645774,-500.0,0.00016438,2]
[339105730,1727250645786,-504.72797092,0.00016438,2]
[339105731,1727250645796,-501.74997025,0.00016438,2]
[339105732,1727250645807,-500.0,0.00016438,2]
[339105733,1727250645819,-736.24,0.00016438,2]
[339105734,1727250645830,-618.45,0.00016438,2]
[339105735,1727250645840,-500.0,0.00016438,2]
[339105736,1727250645851,-607.64461943,0.00016438,2]
[339105737,1727250645863,-500.0,0.00016438,2]
[339105738,1727250645873,-500.0,0.00016438,2]
[339105740,1727250645883,-500.0,0.00016438,2]
[339105741,1727250645893,-500.0,0.00016438,2]
[339105742,1727250645904,-500.0,0.00016438,2]
[339105743,1727250645916,-722.16,0.00016438,2]
[339105744,1727250645927,-516.97644752,0.00016438,2]
[339105746,1727250645937,-512.25854286,0.00016438,2]
[339105747,1727250645950,-500.0,0.00016438,2]
[339105748,1727250645960,-500.0,0.00016438,2]
[339105749,1727250645970,-500.0,0.00016438,2]
[339105750,1727250645980,-500.0,0.00016438,2]
[339105752,1727250645990,-500.0,0.00016438,2]
[339105754,1727250646001,-501.314215,0.00016438,2]
[339105756,1727250646011,-435.29062532,0.00016438,2]
[339105758,1727250646022,-575.67,0.00016438,2]
[339105759,1727250646033,-500.0,0.00016438,2]
[339105761,1727250646043,-500.0,0.00016438,2]
[339105763,1727250646054,-502.06778918,0.00016438,2]
[339105764,1727250646064,-500.0,0.00016438,2]
[339105765,1727250646074,-500.0,0.00016438,2]
[339105766,1727250646084,-500.0,0.00016438,2]
[339105767,1727250646094,-500.0,0.00016438,2]
[339105769,1727250646104,-176.544244,0.00016438,2]
[339105771,1727250646114,-500.0,0.00016438,2]
[339105773,1727250646124,-500.0,0.00016438,2]
[339105774,1727250646134,-176.544244,0.00016438,2]
[339105775,1727250646144,-398.88,0.00016438,2]
[339105777,1727250646153,-500.0,0.00016438,2]
[339105779,1727250646163,-515.50383573,0.00016438,2]
[339105781,1727250646174,-593.43606752,0.00016438,2]
[339105782,1727250646184,-500.0,0.00016438,2]
[339105785,1727250646195,-500.0,0.00016438,2]
[339105786,1727250646206,-500.0,0.00016438,2]
[339105811,1727250646460,-500.0,0.00016438,2]
[339105812,1727250646517,-500.0,0.00016438,2]
[339105813,1727250646528,-500.0,0.00016438,2]
[339105814,1727250646539,-516.5,0.00016438,2]
[339105815,1727250646550,-500.0,0.00016438,2]
[339105816,1727250646562,-500.0,0.00016438,2]
[339105817,1727250646572,-228.041103,0.00016438,2]
[339105818,1727250646582,-151.0,0.00016438,2]
[339105819,1727250646592,-434.557213,0.00016438,2]
[339105820,1727250646601,-500.0,0.00016438,2]
[339105821,1727250646610,-500.0,0.00016438,2]
[339105822,1727250646621,-434.557213,0.00016438,2]
[339105823,1727250646632,-500.0,0.00016438,2]
[339105824,1727250646642,-906.78,0.00016438,2]
[339105825,1727250646654,-500.0,0.00016438,2]
[339105826,1727250646664,-5018.91,0.00016438,2]
[339105827,1727250646673,-907.52,0.00016438,2]
[339105828,1727250646683,-500.0,0.00016438,2]
[339105829,1727250646692,-500.0,0.00016438,2]
[339105830,1727250646702,-514.77,0.00016438,2]
[339105831,1727250646712,-757.832676,0.00016438,2]
[339105832,1727250646722,-500.0,0.00016438,2]
[339105833,1727250646731,-500.0,0.00016438,2]
[339105834,1727250646743,-806.05,0.00016438,2]
[339105835,1727250646754,-757.832676,0.00016438,2]
[339105836,1727250646764,-500.0,0.00016438,2]
[339105837,1727250646774,-500.0,0.00016438,2]
[339105838,1727250646784,-500.0,0.00016438,2]
[339105839,1727250646793,-500.0,0.00016438,2]
[339105840,1727250646802,-500.0,0.00016438,2]
[339105841,1727250646813,-1740.26,0.00016438,2]
[339105842,1727250646823,-500.0,0.00016438,2]
[339105843,1727250646833,-500.0,0.00016438,2]
[339105844,1727250646842,-500.0,0.00016438,2]
[339105845,1727250646851,-151.0,0.00016438,2]
[339105846,1727250646861,-500.0,0.00016438,2]
[339105847,1727250646871,-500.0,0.00016438,2]
[339105848,1727250646880,-151.0,0.00016438,2]
[339105849,1727250646890,-500.0,0.00016438,2]
[339105850,1727250646900,-364.50586813,0.00016438,2]
[339105851,1727250646910,-151.0,0.00016438,2]
[339105852,1727250646922,-500.0,0.00016438,2]
[339105853,1727250646933,-305.787318,0.00016438,2]
[339105854,1727250646943,-151.0,0.00016438,2]